[Event "Titled Tuesday Blitz January 04 2022"]
[White "Provotorov, Ivan"]
[Black "Demchenko, Anton"]
[WhiteFideId "4154657"]
[BlackFideId "4160258"]
[WhiteElo "2291"]
[BlackElo "2539"]
[Result "1-0"]
[Round "02"]
[TimeControl "180+1"]
[Date "2022.01.04"]
[WhiteClock "0:00:06"]
[BlackClock "0:00:04"]

1. c4 {[%clk 0:02:27]}  e5 {[%clk 0:02:59]} 2. Nc3 {[%clk 0:02:27]}  Bb4 {[%clk 0:02:59]} 3. Qc2 {[%clk 0:02:26]}  Nf6 {[%clk 0:02:55]} 4. Nf3 {[%clk 0:02:26]}  Bxc3 {[%clk 0:02:50]} 5. Qxc3 {[%clk 0:02:26]}  d6 {[%clk 0:02:50]} 6. d4 {[%clk 0:02:26]}  e4 {[%clk 0:02:47]} 7. Ng5 {[%clk 0:02:25]}  h6 {[%clk 0:02:43]} 8. Nh3 {[%clk 0:02:22]}  Bxh3 {[%clk 0:02:32]} 9. Qxh3 {[%clk 0:02:23]}  Nc6 {[%clk 0:02:29]} 10. Qc3 {[%clk 0:02:20]}  d5 {[%clk 0:02:25]} 11. e3 {[%clk 0:02:18]}  O-O {[%clk 0:02:24]} 12. b3 {[%clk 0:02:10]}  Ne7 {[%clk 0:02:20]} 13. Be2 {[%clk 0:02:09]}  Re8 {[%clk 0:02:18]} 14. O-O {[%clk 0:02:05]}  Nf5 {[%clk 0:02:17]} 15. Bd2 {[%clk 0:02:02]}  c6 {[%clk 0:02:16]} 16. b4 {[%clk 0:01:58]}  a6 {[%clk 0:01:58]} 17. a4 {[%clk 0:01:48]}  Rc8 {[%clk 0:01:58]} 18. Qb3 {[%clk 0:01:37]}  Qc7 {[%clk 0:01:16]} 19. Rfc1 {[%clk 0:01:31]}  Qd6 {[%clk 0:00:59]} 20. b5 {[%clk 0:01:17]}  axb5 {[%clk 0:01:00]} 21. cxb5 {[%clk 0:01:11]}  h5 {[%clk 0:00:57]} 22. Bb4 {[%clk 0:01:07]}  Qe6 {[%clk 0:00:53]} 23. a5 {[%clk 0:01:02]}  cxb5 {[%clk 0:00:52]} 24. Bxb5 {[%clk 0:00:59]}  Rxc1+ {[%clk 0:00:49]} 25. Rxc1 {[%clk 0:01:00]}  Ra8 {[%clk 0:00:50]} 26. Rc7 {[%clk 0:00:52]}  Nd6 {[%clk 0:00:44]} 27. Bf1 {[%clk 0:00:29]}  Nfe8 {[%clk 0:00:44]} 28. Bxd6 {[%clk 0:00:22]}  Nxd6 {[%clk 0:00:42]} 29. Qb6 {[%clk 0:00:18]}  h4 {[%clk 0:00:33]} 30. a6 {[%clk 0:00:18]}  bxa6 {[%clk 0:00:33]} 31. Rc6 {[%clk 0:00:18]}  Rc8 {[%clk 0:00:10]} 32. Rxd6 {[%clk 0:00:17]}  Qe7 {[%clk 0:00:11]} 33. Rxd5 {[%clk 0:00:16]}  h3 {[%clk 0:00:08]} 34. g3 {[%clk 0:00:11]}  Kh7 {[%clk 0:00:07]} 35. Re5 {[%clk 0:00:09]}  Qd7 {[%clk 0:00:05]} 36. Rh5+ {[%clk 0:00:07]}  Kg8 {[%clk 0:00:05]} 37. Bxh3 {[%clk 0:00:05]}  Rc1+ {[%clk 0:00:04]} 38. Kg2 {[%clk 0:00:05]}  Qe8 {[%clk 0:00:01]} 39. Re5 {[%clk 0:00:04]}  Qf8 {[%clk 0:00:01]} 40. Qb2 {[%clk 0:00:02]}  Rd1 {[%clk 0:00:01]} 41. Qb3 {[%clk 0:00:02]}  Rc1 {[%clk 0:00:01]} 42. Qa4 {[%clk 0:00:02]}  Qc8 {[%clk 0:00:01]} 43. Bxc8 {[%clk 0:00:02]}  Rxc8 {[%clk 0:00:01]} 44. Re8+ {[%clk 0:00:03]}  Rxe8 {[%clk 0:00:01]} 45. Qxe8+ {[%clk 0:00:04]}  Kh7 {[%clk 0:00:02]} 46. Qa8 {[%clk 0:00:04]}  g6 {[%clk 0:00:03]} 47. Qxa6 {[%clk 0:00:05]}  Kg7 {[%clk 0:00:04]} 48. Qb5 {[%clk 0:00:06]} 1-0


[Site "https://www.chess.com"]

[Event "Titled Tuesday Blitz January 04 2022"]
[White "Riehle, Marco"]
[Black "Nguyen, Ngoc Truong Son"]
[WhiteFideId "12904392"]
[BlackFideId "12401110"]
[WhiteElo "2462"]
[BlackElo "2596"]
[Result "1-0"]
[Round "02"]
[TimeControl "180+1"]
[Date "2022.01.04"]
[WhiteClock "0:01:12"]
[BlackClock "0:00:05"]

1. e4 {[%clk 0:02:59]}  e5 {[%clk 0:02:57]} 2. Nf3 {[%clk 0:02:59]}  Nf6 {[%clk 0:02:55]} 3. Nxe5 {[%clk 0:03:00]}  d6 {[%clk 0:02:55]} 4. Nf3 {[%clk 0:03:00]}  Nxe4 {[%clk 0:02:55]} 5. Nc3 {[%clk 0:03:01]}  Nf6 {[%clk 0:02:54]} 6. d4 {[%clk 0:03:01]}  g6 {[%clk 0:02:46]} 7. Bd3 {[%clk 0:03:00]}  Bg7 {[%clk 0:02:46]} 8. Bg5 {[%clk 0:03:01]}  h6 {[%clk 0:02:44]} 9. Bh4 {[%clk 0:03:01]}  Qe7+ {[%clk 0:02:41]} 10. Ne2 {[%clk 0:03:00]}  Bg4 {[%clk 0:02:38]} 11. Qd2 {[%clk 0:02:59]}  Bxf3 {[%clk 0:02:37]} 12. gxf3 {[%clk 0:03:00]}  Nbd7 {[%clk 0:02:37]} 13. O-O-O {[%clk 0:02:57]}  O-O-O {[%clk 0:02:36]} 14. Rhe1 {[%clk 0:02:54]}  Rhe8 {[%clk 0:02:22]} 15. Qa5 {[%clk 0:02:37]}  Kb8 {[%clk 0:02:17]} 16. Nc3 {[%clk 0:02:37]}  Qxe1 {[%clk 0:01:47]} 17. Rxe1 {[%clk 0:02:38]}  Rxe1+ {[%clk 0:01:48]} 18. Kd2 {[%clk 0:02:39]}  Ree8 {[%clk 0:01:11]} 19. Nb5 {[%clk 0:02:38]}  Nb6 {[%clk 0:01:12]} 20. Qxa7+ {[%clk 0:02:38]}  Kc8 {[%clk 0:01:12]} 21. a4 {[%clk 0:02:07]}  Nbd5 {[%clk 0:00:24]} 22. Be4 {[%clk 0:02:05]}  Rxe4 {[%clk 0:00:17]} 23. fxe4 {[%clk 0:02:04]}  Nxe4+ {[%clk 0:00:17]} 24. Kc1 {[%clk 0:01:51]}  Re8 {[%clk 0:00:18]} 25. Qa8+ {[%clk 0:01:45]}  Kd7 {[%clk 0:00:17]} 26. Qxb7 {[%clk 0:01:46]}  Bf6 {[%clk 0:00:07]} 27. Bxf6 {[%clk 0:01:11]}  Nexf6 {[%clk 0:00:08]} 28. c4 {[%clk 0:01:12]}  Re1+ {[%clk 0:00:05]} 29. Kd2 {[%clk 0:01:12]} 1-0


[Site "https://www.chess.com"]

[Event "Titled Tuesday Blitz January 04 2022"]
[White "Romanchuk, Viktor"]
[Black "Grandelius, Nils"]
[WhiteFideId "14109271"]
[BlackFideId "1710400"]
[WhiteElo "2242"]
[BlackElo "2617"]
[Result "0-1"]
[Round "02"]
[TimeControl "180+1"]
[Date "2022.01.04"]
[WhiteClock "0:00:01"]
[BlackClock "0:00:37"]

1. d4 {[%clk 0:03:00]}  d5 {[%clk 0:02:59]} 2. c4 {[%clk 0:02:58]}  e6 {[%clk 0:02:59]} 3. Nc3 {[%clk 0:02:58]}  a6 {[%clk 0:03:00]} 4. cxd5 {[%clk 0:02:55]}  exd5 {[%clk 0:03:01]} 5. Nf3 {[%clk 0:02:55]}  h6 {[%clk 0:03:01]} 6. Bf4 {[%clk 0:02:54]}  Nf6 {[%clk 0:03:02]} 7. e3 {[%clk 0:02:54]}  Bd6 {[%clk 0:03:02]} 8. Bg3 {[%clk 0:02:52]}  O-O {[%clk 0:02:57]} 9. Bd3 {[%clk 0:02:51]}  c6 {[%clk 0:02:38]} 10. Qc2 {[%clk 0:02:39]}  Re8 {[%clk 0:02:34]} 11. O-O {[%clk 0:02:38]}  Bxg3 {[%clk 0:02:33]} 12. hxg3 {[%clk 0:02:38]}  Be6 {[%clk 0:02:29]} 13. b4 {[%clk 0:02:38]}  Nbd7 {[%clk 0:02:28]} 14. Na4 {[%clk 0:02:37]}  Qe7 {[%clk 0:02:07]} 15. Nc5 {[%clk 0:02:35]}  Nb6 {[%clk 0:02:07]} 16. Ne5 {[%clk 0:02:28]}  Nc8 {[%clk 0:01:59]} 17. a4 {[%clk 0:02:21]}  Nd6 {[%clk 0:01:56]} 18. b5 {[%clk 0:02:18]}  cxb5 {[%clk 0:01:56]} 19. axb5 {[%clk 0:02:19]}  a5 {[%clk 0:01:57]} 20. b6 {[%clk 0:02:15]}  Rec8 {[%clk 0:01:50]} 21. Ra3 {[%clk 0:02:04]}  Nde4 {[%clk 0:01:45]} 22. Bxe4 {[%clk 0:01:45]}  Nxe4 {[%clk 0:01:43]} 23. Ned3 {[%clk 0:01:45]}  Rc6 {[%clk 0:01:29]} 24. Qb2 {[%clk 0:01:16]}  Nd6 {[%clk 0:01:28]} 25. Ne5 {[%clk 0:01:10]}  Rcc8 {[%clk 0:01:28]} 26. Rfa1 {[%clk 0:00:55]}  f6 {[%clk 0:01:17]} 27. Ng6 {[%clk 0:00:46]}  Qe8 {[%clk 0:01:15]} 28. Nxe6 {[%clk 0:00:46]}  Nc4 {[%clk 0:01:15]} 29. Qb3 {[%clk 0:00:31]}  Qxe6 {[%clk 0:01:11]} 30. Nf4 {[%clk 0:00:26]}  Qd6 {[%clk 0:01:08]} 31. Ra4 {[%clk 0:00:20]}  g5 {[%clk 0:00:59]} 32. Nd3 {[%clk 0:00:19]}  Rc6 {[%clk 0:00:56]} 33. Nc5 {[%clk 0:00:17]}  Rxb6 {[%clk 0:00:56]} 34. Qc2 {[%clk 0:00:15]}  Kg7 {[%clk 0:00:53]} 35. Qf5 {[%clk 0:00:14]}  Re8 {[%clk 0:00:49]} 36. Nd7 {[%clk 0:00:05]}  Rb2 {[%clk 0:00:45]} 37. Nc5 {[%clk 0:00:04]}  b6 {[%clk 0:00:43]} 38. Nd3 {[%clk 0:00:04]}  Rd2 {[%clk 0:00:43]} 39. R4a2 {[%clk 0:00:02]}  Qe6 {[%clk 0:00:36]} 40. Qxe6 {[%clk 0:00:01]}  Rxe6 {[%clk 0:00:37]} 0-1


[Site "https://www.chess.com"]

[Event "Titled Tuesday Blitz January 04 2022"]
[White "Sadhwani, Raunak"]
[Black "Taboas Rodriguez, Daniel"]
[WhiteFideId "35093487"]
[BlackFideId "2208466"]
[WhiteElo "2616"]
[BlackElo "2429"]
[Result "1-0"]
[Round "02"]
[TimeControl "180+1"]
[Date "2022.01.04"]
[WhiteClock "0:01:46"]
[BlackClock "0:01:12"]

1. e4 {[%clk 0:03:00]}  e6 {[%clk 0:02:56]} 2. d4 {[%clk 0:03:00]}  d5 {[%clk 0:02:56]} 3. Nc3 {[%clk 0:03:00]}  Nc6 {[%clk 0:02:52]} 4. Nf3 {[%clk 0:02:58]}  Nf6 {[%clk 0:02:52]} 5. e5 {[%clk 0:02:54]}  Ne4 {[%clk 0:02:52]} 6. Bd3 {[%clk 0:02:52]}  Bb4 {[%clk 0:02:51]} 7. O-O {[%clk 0:02:50]}  Nxc3 {[%clk 0:02:51]} 8. bxc3 {[%clk 0:02:51]}  Bxc3 {[%clk 0:02:52]} 9. Rb1 {[%clk 0:02:51]}  h6 {[%clk 0:02:52]} 10. Ba3 {[%clk 0:02:37]}  a5 {[%clk 0:02:52]} 11. Rb3 {[%clk 0:02:29]}  Bb4 {[%clk 0:02:51]} 12. Bc1 {[%clk 0:02:30]}  b6 {[%clk 0:02:44]} 13. h4 {[%clk 0:02:26]}  Ba6 {[%clk 0:02:43]} 14. Bxa6 {[%clk 0:02:22]}  Rxa6 {[%clk 0:02:44]} 15. h5 {[%clk 0:02:23]}  a4 {[%clk 0:02:39]} 16. Rb1 {[%clk 0:02:19]}  Be7 {[%clk 0:02:32]} 17. Nh2 {[%clk 0:02:10]}  O-O {[%clk 0:02:15]} 18. Ng4 {[%clk 0:02:10]}  Re8 {[%clk 0:02:02]} 19. c3 {[%clk 0:02:00]}  Bf8 {[%clk 0:01:44]} 20. Bxh6 {[%clk 0:01:54]}  gxh6 {[%clk 0:01:43]} 21. Nf6+ {[%clk 0:01:54]}  Kh8 {[%clk 0:01:44]} 22. Qd3 {[%clk 0:01:53]}  Qxf6 {[%clk 0:01:29]} 23. exf6 {[%clk 0:01:54]}  Ra5 {[%clk 0:01:29]} 24. f4 {[%clk 0:01:49]}  Bd6 {[%clk 0:01:25]} 25. Rf3 {[%clk 0:01:49]}  Rg8 {[%clk 0:01:25]} 26. Rbf1 {[%clk 0:01:48]}  a3 {[%clk 0:01:20]} 27. Qe3 {[%clk 0:01:47]}  Rb5 {[%clk 0:01:16]} 28. f5 {[%clk 0:01:47]}  Kh7 {[%clk 0:01:12]} 29. fxe6 {[%clk 0:01:46]}  fxe6 {[%clk 0:01:12]} 30. Qd3+ {[%clk 0:01:46]} 1-0


[Site "https://www.chess.com"]

[Event "Titled Tuesday Blitz January 04 2022"]
[White "Saveljev, Vladislav"]
[Black "Drozdowski, Kacper"]
[WhiteFideId "4128494"]
[BlackFideId "1136720"]
[WhiteElo "2331"]
[BlackElo "2507"]
[Result "0-1"]
[Round "02"]
[TimeControl "180+1"]
[Date "2022.01.04"]
[WhiteClock "0:00:52"]
[BlackClock "0:01:55"]

1. d4 {[%clk 0:02:54]}  Nf6 {[%clk 0:02:59]} 2. c4 {[%clk 0:02:53]}  g6 {[%clk 0:03:00]} 3. Nc3 {[%clk 0:02:51]}  d5 {[%clk 0:03:00]} 4. Nf3 {[%clk 0:02:50]}  Bg7 {[%clk 0:03:00]} 5. Bg5 {[%clk 0:02:51]}  Ne4 {[%clk 0:03:00]} 6. cxd5 {[%clk 0:02:50]}  Nxg5 {[%clk 0:03:00]} 7. Nxg5 {[%clk 0:02:51]}  e6 {[%clk 0:03:00]} 8. Nf3 {[%clk 0:02:51]}  exd5 {[%clk 0:03:00]} 9. e3 {[%clk 0:02:51]}  c6 {[%clk 0:03:01]} 10. Be2 {[%clk 0:02:51]}  O-O {[%clk 0:03:01]} 11. O-O {[%clk 0:02:51]}  a5 {[%clk 0:03:01]} 12. a3 {[%clk 0:02:49]}  Nd7 {[%clk 0:02:59]} 13. b4 {[%clk 0:02:48]}  axb4 {[%clk 0:02:53]} 14. axb4 {[%clk 0:02:48]}  Rxa1 {[%clk 0:02:53]} 15. Qxa1 {[%clk 0:02:49]}  Qb6 {[%clk 0:02:48]} 16. b5 {[%clk 0:02:45]}  Re8 {[%clk 0:02:44]} 17. bxc6 {[%clk 0:02:44]}  bxc6 {[%clk 0:02:44]} 18. Rb1 {[%clk 0:02:44]}  Qc7 {[%clk 0:02:44]} 19. Na4 {[%clk 0:02:35]}  h5 {[%clk 0:02:41]} 20. Qc3 {[%clk 0:02:30]}  Nf6 {[%clk 0:02:38]} 21. Rc1 {[%clk 0:02:24]}  Ne4 {[%clk 0:02:34]} 22. Qxc6 {[%clk 0:02:12]}  Qxc6 {[%clk 0:02:33]} 23. Rxc6 {[%clk 0:02:13]}  Bd7 {[%clk 0:02:34]} 24. Ra6 {[%clk 0:02:13]}  Bxa4 {[%clk 0:02:29]} 25. Rxa4 {[%clk 0:02:12]}  Nc3 {[%clk 0:02:30]} 26. Ra5 {[%clk 0:01:47]}  Nxe2+ {[%clk 0:02:29]} 27. Kf1 {[%clk 0:01:47]}  Nc3 {[%clk 0:02:29]} 28. Rc5 {[%clk 0:01:47]}  Ne4 {[%clk 0:02:21]} 29. Rxd5 {[%clk 0:01:47]}  Ra8 {[%clk 0:02:20]} 30. Ne1 {[%clk 0:01:15]}  Ra2 {[%clk 0:02:11]} 31. f3 {[%clk 0:01:13]}  Nd2+ {[%clk 0:02:03]} 32. Kg1 {[%clk 0:01:13]}  Nc4 {[%clk 0:02:00]} 33. Rd8+ {[%clk 0:00:52]}  Kh7 {[%clk 0:02:00]} 34. Re8 {[%clk 0:00:52]}  Nxe3 {[%clk 0:01:55]} 0-1


[Site "https://www.chess.com"]

[Event "Titled Tuesday Blitz January 04 2022"]
[White "Sjugirov, Sanan"]
[Black "Golubev, Mikhail"]
[WhiteFideId "4189302"]
[BlackFideId "14100983"]
[WhiteElo "2602"]
[BlackElo "2374"]
[Result "1-0"]
[Round "02"]
[TimeControl "180+1"]
[Date "2022.01.04"]
[WhiteClock "0:00:10"]
[BlackClock "0:00:01"]

1. e4 {[%clk 0:03:00]}  c5 {[%clk 0:02:59]} 2. Nf3 {[%clk 0:03:00]}  d6 {[%clk 0:02:59]} 3. Bb5+ {[%clk 0:02:59]}  Bd7 {[%clk 0:02:58]} 4. Bxd7+ {[%clk 0:02:58]}  Qxd7 {[%clk 0:02:56]} 5. O-O {[%clk 0:02:58]}  Nc6 {[%clk 0:02:53]} 6. c3 {[%clk 0:02:58]}  Nf6 {[%clk 0:02:51]} 7. Qe2 {[%clk 0:02:58]}  e6 {[%clk 0:02:49]} 8. d4 {[%clk 0:02:59]}  cxd4 {[%clk 0:02:44]} 9. cxd4 {[%clk 0:03:00]}  d5 {[%clk 0:02:45]} 10. e5 {[%clk 0:03:00]}  Ne4 {[%clk 0:02:44]} 11. Nbd2 {[%clk 0:03:01]}  Nxd2 {[%clk 0:02:40]} 12. Bxd2 {[%clk 0:03:02]}  Be7 {[%clk 0:02:35]} 13. g3 {[%clk 0:03:01]}  O-O {[%clk 0:02:33]} 14. Kg2 {[%clk 0:03:02]}  a6 {[%clk 0:02:29]} 15. h4 {[%clk 0:03:01]}  Rac8 {[%clk 0:02:12]} 16. h5 {[%clk 0:02:53]}  h6 {[%clk 0:02:11]} 17. a3 {[%clk 0:02:46]}  f6 {[%clk 0:02:02]} 18. exf6 {[%clk 0:02:45]}  Bxf6 {[%clk 0:01:57]} 19. Bc3 {[%clk 0:02:45]}  Rce8 {[%clk 0:01:48]} 20. Rae1 {[%clk 0:02:12]}  Qf7 {[%clk 0:01:31]} 21. Rh1 {[%clk 0:01:47]}  e5 {[%clk 0:01:26]} 22. dxe5 {[%clk 0:01:37]}  d4 {[%clk 0:01:01]} 23. Bxd4 {[%clk 0:01:07]}  Nxd4 {[%clk 0:00:54]} 24. Nxd4 {[%clk 0:01:08]}  Bxe5 {[%clk 0:00:52]} 25. Nf3 {[%clk 0:00:57]}  Bxg3 {[%clk 0:00:50]} 26. Qd3 {[%clk 0:00:54]}  Bc7 {[%clk 0:00:41]} 27. Rxe8 {[%clk 0:00:47]}  Rxe8 {[%clk 0:00:40]} 28. Rc1 {[%clk 0:00:41]}  Qxh5 {[%clk 0:00:11]} 29. Qc4+ {[%clk 0:00:26]}  Kh8 {[%clk 0:00:05]} 30. Qxc7 {[%clk 0:00:25]}  Re4 {[%clk 0:00:02]} 31. Nh2 {[%clk 0:00:10]}  Qg5+ {[%clk 0:00:02]} 32. Kh1 {[%clk 0:00:10]}  Rg4 {[%clk 0:00:01]} 1-0


[Site "https://www.chess.com"]

[Event "Titled Tuesday Blitz January 04 2022"]
[White "Skatchkov, Valery"]
[Black "Piorun, Kacper"]
[WhiteFideId "24195812"]
[BlackFideId "1130420"]
[WhiteElo "2196"]
[BlackElo "2571"]
[Result "0-1"]
[Round "02"]
[TimeControl "180+1"]
[Date "2022.01.04"]
[WhiteClock "0:00:15"]
[BlackClock "0:00:15"]

1. d4 {[%clk 0:03:00]}  Nf6 {[%clk 0:02:59]} 2. c4 {[%clk 0:03:00]}  g6 {[%clk 0:03:00]} 3. Nf3 {[%clk 0:02:59]}  Bg7 {[%clk 0:03:00]} 4. g3 {[%clk 0:02:59]}  O-O {[%clk 0:03:01]} 5. Bg2 {[%clk 0:02:59]}  d6 {[%clk 0:03:01]} 6. O-O {[%clk 0:02:59]}  Bf5 {[%clk 0:03:01]} 7. Nc3 {[%clk 0:03:00]}  c6 {[%clk 0:03:00]} 8. Bg5 {[%clk 0:02:46]}  h6 {[%clk 0:02:53]} 9. Bxf6 {[%clk 0:02:46]}  Bxf6 {[%clk 0:02:53]} 10. e4 {[%clk 0:02:46]}  Bg4 {[%clk 0:02:52]} 11. h3 {[%clk 0:02:45]}  Bxf3 {[%clk 0:02:51]} 12. Bxf3 {[%clk 0:02:46]}  Qb6 {[%clk 0:02:48]} 13. Ne2 {[%clk 0:02:32]}  Na6 {[%clk 0:02:37]} 14. Qd2 {[%clk 0:02:30]}  Bg7 {[%clk 0:02:36]} 15. Rad1 {[%clk 0:02:02]}  c5 {[%clk 0:02:25]} 16. b3 {[%clk 0:02:00]}  cxd4 {[%clk 0:02:19]} 17. Nxd4 {[%clk 0:02:01]}  Nc5 {[%clk 0:02:19]} 18. Bg2 {[%clk 0:01:53]}  h5 {[%clk 0:02:09]} 19. Qe3 {[%clk 0:01:50]}  Ne6 {[%clk 0:01:51]} 20. Nc2 {[%clk 0:01:37]}  Qa5 {[%clk 0:01:39]} 21. a4 {[%clk 0:01:36]}  Qc5 {[%clk 0:01:33]} 22. Rfe1 {[%clk 0:01:27]}  Rab8 {[%clk 0:01:24]} 23. Kh2 {[%clk 0:01:08]}  Rfc8 {[%clk 0:01:22]} 24. h4 {[%clk 0:01:05]}  Qxe3 {[%clk 0:01:19]} 25. Nxe3 {[%clk 0:01:06]}  Nc5 {[%clk 0:01:19]} 26. Nd5 {[%clk 0:01:05]}  Kf8 {[%clk 0:01:19]} 27. Rb1 {[%clk 0:00:59]}  e6 {[%clk 0:01:14]} 28. Ne3 {[%clk 0:00:53]}  Ke7 {[%clk 0:00:56]} 29. Red1 {[%clk 0:00:53]}  a6 {[%clk 0:00:53]} 30. Rd2 {[%clk 0:00:36]}  Bc3 {[%clk 0:00:48]} 31. Rdd1 {[%clk 0:00:34]}  b5 {[%clk 0:00:45]} 32. axb5 {[%clk 0:00:34]}  axb5 {[%clk 0:00:45]} 33. b4 {[%clk 0:00:35]}  Na4 {[%clk 0:00:43]} 34. cxb5 {[%clk 0:00:18]}  Rxb5 {[%clk 0:00:41]} 35. Bf1 {[%clk 0:00:18]}  Rbb8 {[%clk 0:00:31]} 36. b5 {[%clk 0:00:18]}  Nb6 {[%clk 0:00:29]} 37. Rbc1 {[%clk 0:00:15]}  Ra8 {[%clk 0:00:21]} 38. Kg2 {[%clk 0:00:15]}  Bb4 {[%clk 0:00:16]} 39. Rxc8 {[%clk 0:00:13]}  Nxc8 {[%clk 0:00:15]} 40. Ra1 {[%clk 0:00:14]}  Rxa1 {[%clk 0:00:15]} 41. Nc2 {[%clk 0:00:14]}  Rb1 {[%clk 0:00:14]} 42. Bd3 {[%clk 0:00:14]}  Rb2 {[%clk 0:00:15]} 43. Nd4 {[%clk 0:00:14]}  Nb6 {[%clk 0:00:14]} 44. Nc6+ {[%clk 0:00:14]}  Kd7 {[%clk 0:00:15]} 45. Kf3 {[%clk 0:00:15]}  Bc5 {[%clk 0:00:15]} 0-1


[Site "https://www.chess.com"]

[Event "Titled Tuesday Blitz January 04 2022"]
[White "Solon, Nathan"]
[Black "Kobalia, Mikhail"]
[WhiteFideId "2017229"]
[BlackFideId "4119150"]
[WhiteElo "2559"]
[BlackElo "2667"]
[Result "0-1"]
[Round "02"]
[TimeControl "180+1"]
[Date "2022.01.04"]
[WhiteClock "0:00:26"]
[BlackClock "0:00:06"]

1. d4 {[%clk 0:03:00]}  Nf6 {[%clk 0:02:38]} 2. c4 {[%clk 0:03:00]}  g6 {[%clk 0:02:37]} 3. g3 {[%clk 0:03:00]}  Bg7 {[%clk 0:02:37]} 4. Bg2 {[%clk 0:03:01]}  O-O {[%clk 0:02:37]} 5. Nc3 {[%clk 0:03:01]}  d6 {[%clk 0:02:38]} 6. Nf3 {[%clk 0:03:01]}  Nc6 {[%clk 0:02:38]} 7. O-O {[%clk 0:03:01]}  a6 {[%clk 0:02:38]} 8. b3 {[%clk 0:02:59]}  e5 {[%clk 0:02:37]} 9. dxe5 {[%clk 0:02:56]}  dxe5 {[%clk 0:02:37]} 10. Ba3 {[%clk 0:02:49]}  Re8 {[%clk 0:02:35]} 11. Qxd8 {[%clk 0:02:43]}  Rxd8 {[%clk 0:02:31]} 12. Nd5 {[%clk 0:02:38]}  Nxd5 {[%clk 0:02:27]} 13. cxd5 {[%clk 0:02:38]}  Rxd5 {[%clk 0:02:27]} 14. Ng5 {[%clk 0:02:35]}  Rd8 {[%clk 0:02:21]} 15. Rac1 {[%clk 0:02:25]}  h6 {[%clk 0:02:04]} 16. Ne4 {[%clk 0:02:20]}  Bg4 {[%clk 0:01:59]} 17. Nc5 {[%clk 0:02:14]}  Nd4 {[%clk 0:01:58]} 18. Nxb7 {[%clk 0:02:01]}  Nxe2+ {[%clk 0:01:57]} 19. Kh1 {[%clk 0:02:00]}  Nxc1 {[%clk 0:01:49]} 20. Nxd8 {[%clk 0:02:00]}  Rxd8 {[%clk 0:01:48]} 21. Rxc1 {[%clk 0:02:00]}  Rd2 {[%clk 0:01:48]} 22. h3 {[%clk 0:01:55]}  Be6 {[%clk 0:01:46]} 23. Rxc7 {[%clk 0:01:31]}  Rxf2 {[%clk 0:01:44]} 24. Bc5 {[%clk 0:01:22]}  Rxa2 {[%clk 0:01:42]} 25. b4 {[%clk 0:01:22]}  e4 {[%clk 0:01:32]} 26. Bxe4 {[%clk 0:01:17]}  Be5 {[%clk 0:01:22]} 27. Ra7 {[%clk 0:01:12]}  h5 {[%clk 0:00:51]} 28. g4 {[%clk 0:01:02]}  hxg4 {[%clk 0:00:22]} 29. hxg4 {[%clk 0:01:03]}  Bxg4 {[%clk 0:00:13]} 30. Bd5 {[%clk 0:01:03]}  Ra1+ {[%clk 0:00:12]} 31. Kg2 {[%clk 0:01:03]}  Be6 {[%clk 0:00:13]} 32. Bxe6 {[%clk 0:01:01]}  fxe6 {[%clk 0:00:14]} 33. Re7 {[%clk 0:01:00]}  Bc3 {[%clk 0:00:12]} 34. Rxe6 {[%clk 0:00:58]}  Kf7 {[%clk 0:00:12]} 35. Rc6 {[%clk 0:00:56]}  Bd2 {[%clk 0:00:10]} 36. Kf3 {[%clk 0:00:53]}  Ra4 {[%clk 0:00:09]} 37. Ke2 {[%clk 0:00:42]}  Bxb4 {[%clk 0:00:07]} 38. Bxb4 {[%clk 0:00:42]}  Rxb4 {[%clk 0:00:08]} 39. Rxa6 {[%clk 0:00:43]}  Rf4 {[%clk 0:00:07]} 40. Ke3 {[%clk 0:00:41]}  Rf5 {[%clk 0:00:07]} 41. Ke4 {[%clk 0:00:40]}  Rf1 {[%clk 0:00:07]} 42. Rb6 {[%clk 0:00:34]}  Kg7 {[%clk 0:00:07]} 43. Rb3 {[%clk 0:00:28]}  Kh6 {[%clk 0:00:06]} 44. Rf3 {[%clk 0:00:26]}  Rxf3 {[%clk 0:00:05]} 45. Kxf3 {[%clk 0:00:26]}  Kh5 {[%clk 0:00:06]} 46. Kg3 {[%clk 0:00:26]}  Kg5 {[%clk 0:00:06]} 0-1


[Site "https://www.chess.com"]

[Event "Titled Tuesday Blitz January 04 2022"]
[White "Stark, Lars"]
[Black "Svane, Rasmus"]
[WhiteFideId "4676386"]
[BlackFideId "4657101"]
[WhiteElo "2474"]
[BlackElo "2645"]
[Result "0-1"]
[Round "02"]
[TimeControl "180+1"]
[Date "2022.01.04"]
[WhiteClock "0:00:04"]
[BlackClock "0:00:32"]

1. c4 {[%clk 0:03:00]}  e6 {[%clk 0:03:00]} 2. g3 {[%clk 0:03:00]}  d5 {[%clk 0:03:00]} 3. Bg2 {[%clk 0:03:01]}  dxc4 {[%clk 0:03:00]} 4. Qa4+ {[%clk 0:03:01]}  Nd7 {[%clk 0:02:56]} 5. Qxc4 {[%clk 0:02:59]}  a6 {[%clk 0:02:57]} 6. Qc2 {[%clk 0:02:58]}  c5 {[%clk 0:02:54]} 7. a4 {[%clk 0:02:57]}  Ngf6 {[%clk 0:02:39]} 8. a5 {[%clk 0:02:56]}  Bd6 {[%clk 0:02:39]} 9. Nf3 {[%clk 0:02:54]}  O-O {[%clk 0:02:39]} 10. d3 {[%clk 0:02:52]}  Nb8 {[%clk 0:02:36]} 11. Nbd2 {[%clk 0:02:52]}  Nc6 {[%clk 0:02:33]} 12. Nc4 {[%clk 0:02:52]}  Bc7 {[%clk 0:02:34]} 13. Bd2 {[%clk 0:02:52]}  Nd5 {[%clk 0:02:34]} 14. O-O {[%clk 0:02:51]}  e5 {[%clk 0:02:27]} 15. Rfc1 {[%clk 0:02:34]}  Ndb4 {[%clk 0:02:19]} 16. Qd1 {[%clk 0:02:28]}  Re8 {[%clk 0:02:15]} 17. Bc3 {[%clk 0:02:06]}  f6 {[%clk 0:02:05]} 18. Nfd2 {[%clk 0:01:47]}  Qe7 {[%clk 0:01:44]} 19. Nb3 {[%clk 0:01:33]}  Rd8 {[%clk 0:01:45]} 20. Qe1 {[%clk 0:01:27]}  Rb8 {[%clk 0:01:41]} 21. Nb6 {[%clk 0:01:14]}  Bd6 {[%clk 0:01:13]} 22. Nxc8 {[%clk 0:01:10]}  Rdxc8 {[%clk 0:01:14]} 23. Nd2 {[%clk 0:01:03]}  Qf7 {[%clk 0:01:04]} 24. Nc4 {[%clk 0:01:00]}  Bf8 {[%clk 0:01:05]} 25. Qd1 {[%clk 0:00:54]}  Kh8 {[%clk 0:01:03]} 26. Qa4 {[%clk 0:00:51]}  Nd4 {[%clk 0:00:58]} 27. Qd1 {[%clk 0:00:28]}  Rd8 {[%clk 0:00:54]} 28. Bxb4 {[%clk 0:00:17]}  cxb4 {[%clk 0:00:54]} 29. Nd2 {[%clk 0:00:07]}  Rbc8 {[%clk 0:00:47]} 30. e3 {[%clk 0:00:05]}  Nc6 {[%clk 0:00:40]} 31. Nc4 {[%clk 0:00:04]}  Qd7 {[%clk 0:00:32]} 0-1


[Site "https://www.chess.com"]